[Event "Titled Tuesday Blitz March 15 Late 2022"]
[White "Drozdowski, Kacper"]
[Black "Lysyj, Igor"]
[WhiteFideId "1136720"]
[BlackFideId "4150120"]
[WhiteElo "2507"]
[BlackElo "2611"]
[Result "1-0"]
[Round "03"]
[TimeControl "180+1"]
[Date "2022.03.15"]
[WhiteClock "0:00:27"]
[BlackClock "0:00:16"]

1. e4 {[%clk 0:02:39]}  e5 {[%clk 0:02:59]} 2. Nf3 {[%clk 0:02:39]}  Nc6 {[%clk 0:02:59]} 3. Bc4 {[%clk 0:02:38]}  Bc5 {[%clk 0:02:57]} 4. c3 {[%clk 0:02:38]}  Nf6 {[%clk 0:02:56]} 5. d3 {[%clk 0:02:38]}  d6 {[%clk 0:02:54]} 6. Bb3 {[%clk 0:02:39]}  h6 {[%clk 0:02:52]} 7. h3 {[%clk 0:02:39]}  a5 {[%clk 0:02:49]} 8. Nbd2 {[%clk 0:02:39]}  O-O {[%clk 0:02:47]} 9. Nh2 {[%clk 0:02:38]}  d5 {[%clk 0:02:47]} 10. Qf3 {[%clk 0:02:38]}  dxe4 {[%clk 0:02:36]} 11. dxe4 {[%clk 0:02:39]}  a4 {[%clk 0:02:35]} 12. Bc2 {[%clk 0:02:37]}  Be6 {[%clk 0:02:31]} 13. a3 {[%clk 0:02:29]}  Nh7 {[%clk 0:02:26]} 14. Ndf1 {[%clk 0:02:27]}  Qf6 {[%clk 0:02:24]} 15. Ng3 {[%clk 0:02:20]}  Qxf3 {[%clk 0:02:23]} 16. Nxf3 {[%clk 0:02:21]}  Nf6 {[%clk 0:02:23]} 17. Nf5 {[%clk 0:01:58]}  Rfd8 {[%clk 0:02:21]} 18. g4 {[%clk 0:01:45]}  Ne8 {[%clk 0:02:10]} 19. Be3 {[%clk 0:01:40]}  Bxe3 {[%clk 0:02:03]} 20. Nxe3 {[%clk 0:01:41]}  Nd6 {[%clk 0:02:02]} 21. O-O-O {[%clk 0:01:39]}  f6 {[%clk 0:01:43]} 22. h4 {[%clk 0:01:39]}  Ne7 {[%clk 0:01:40]} 23. g5 {[%clk 0:01:37]}  b5 {[%clk 0:01:37]} 24. Rdg1 {[%clk 0:01:30]}  Kh8 {[%clk 0:01:31]} 25. Nd2 {[%clk 0:01:24]}  Nb7 {[%clk 0:01:24]} 26. Nf5 {[%clk 0:01:19]}  Bxf5 {[%clk 0:01:12]} 27. exf5 {[%clk 0:01:20]}  Nc5 {[%clk 0:01:13]} 28. Rh3 {[%clk 0:01:16]}  Rd6 {[%clk 0:01:10]} 29. Ne4 {[%clk 0:01:06]}  Nxe4 {[%clk 0:01:09]} 30. Bxe4 {[%clk 0:01:07]}  Rf8 {[%clk 0:01:05]} 31. gxh6 {[%clk 0:01:07]}  gxh6 {[%clk 0:01:05]} 32. Rhg3 {[%clk 0:01:07]}  Rg8 {[%clk 0:01:04]} 33. Kc2 {[%clk 0:01:05]}  Rxg3 {[%clk 0:01:03]} 34. fxg3 {[%clk 0:01:06]}  Kg7 {[%clk 0:01:00]} 35. g4 {[%clk 0:01:01]}  c5 {[%clk 0:00:57]} 36. c4 {[%clk 0:00:56]}  Rd4 {[%clk 0:00:55]} 37. Bd3 {[%clk 0:00:53]}  bxc4 {[%clk 0:00:55]} 38. Be2 {[%clk 0:00:54]}  Nd5 {[%clk 0:00:54]} 39. Rg3 {[%clk 0:00:54]}  e4 {[%clk 0:00:52]} 40. Kc1 {[%clk 0:00:51]}  Kf7 {[%clk 0:00:49]} 41. g5 {[%clk 0:00:50]}  hxg5 {[%clk 0:00:49]} 42. hxg5 {[%clk 0:00:51]}  fxg5 {[%clk 0:00:49]} 43. Rxg5 {[%clk 0:00:51]}  Kf6 {[%clk 0:00:49]} 44. Rg6+ {[%clk 0:00:48]}  Kxf5 {[%clk 0:00:49]} 45. Rc6 {[%clk 0:00:48]}  c3 {[%clk 0:00:28]} 46. bxc3 {[%clk 0:00:47]}  Nxc3 {[%clk 0:00:28]} 47. Rxc5+ {[%clk 0:00:47]}  Nd5 {[%clk 0:00:28]} 48. Kc2 {[%clk 0:00:32]}  Ke5 {[%clk 0:00:26]} 49. Rc8 {[%clk 0:00:30]}  Nf4 {[%clk 0:00:24]} 50. Bc4 {[%clk 0:00:29]}  e3 {[%clk 0:00:22]} 51. Re8+ {[%clk 0:00:28]}  Kd6 {[%clk 0:00:22]} 52. Kc3 {[%clk 0:00:28]}  Rd1 {[%clk 0:00:16]} 53. Rd8+ {[%clk 0:00:27]} 1-0


[Site "https://www.chess.com"]

[Event "Titled Tuesday Blitz March 15 Late 2022"]
[White "Ezat, Mohamed"]
[Black "Lehtosaari, Mauri"]
[WhiteFideId "10600906"]
[BlackFideId "501999"]
[WhiteElo "2386"]
[BlackElo "2477"]
[Result "1-0"]
[Round "03"]
[TimeControl "180+1"]
[Date "2022.03.16"]
[WhiteClock "0:00:11"]
[BlackClock "0:00:12"]

1. d4 {[%clk 0:03:00]}  d5 {[%clk 0:02:57]} 2. c4 {[%clk 0:03:01]}  c6 {[%clk 0:02:58]} 3. Nc3 {[%clk 0:03:00]}  Nf6 {[%clk 0:02:57]} 4. cxd5 {[%clk 0:02:57]}  cxd5 {[%clk 0:02:57]} 5. Bf4 {[%clk 0:02:56]}  Nc6 {[%clk 0:02:56]} 6. e3 {[%clk 0:02:54]}  a6 {[%clk 0:02:55]} 7. Bd3 {[%clk 0:02:52]}  Bg4 {[%clk 0:02:51]} 8. f3 {[%clk 0:02:50]}  Bh5 {[%clk 0:02:49]} 9. Nge2 {[%clk 0:02:46]}  e6 {[%clk 0:02:44]} 10. O-O {[%clk 0:02:45]}  Bd6 {[%clk 0:02:43]} 11. Rc1 {[%clk 0:02:43]}  O-O {[%clk 0:02:38]} 12. Na4 {[%clk 0:02:40]}  Rc8 {[%clk 0:02:31]} 13. Nc5 {[%clk 0:02:37]}  Bxc5 {[%clk 0:02:14]} 14. Rxc5 {[%clk 0:02:36]}  Qb6 {[%clk 0:02:11]} 15. Qc1 {[%clk 0:02:28]}  Nd7 {[%clk 0:01:58]} 16. Rc3 {[%clk 0:02:27]}  Bg6 {[%clk 0:01:40]} 17. Bxg6 {[%clk 0:02:19]}  hxg6 {[%clk 0:01:40]} 18. a3 {[%clk 0:02:19]}  Rfe8 {[%clk 0:01:33]} 19. Bg3 {[%clk 0:02:16]}  Ne7 {[%clk 0:01:28]} 20. Nf4 {[%clk 0:02:15]}  Rxc3 {[%clk 0:01:26]} 21. Qxc3 {[%clk 0:02:14]}  Rc8 {[%clk 0:01:27]} 22. Qd2 {[%clk 0:02:15]}  Qc6 {[%clk 0:01:18]} 23. h3 {[%clk 0:02:08]}  Nf5 {[%clk 0:01:10]} 24. Bf2 {[%clk 0:02:08]}  Qc2 {[%clk 0:01:10]} 25. Qb4 {[%clk 0:02:06]}  b5 {[%clk 0:01:03]} 26. g4 {[%clk 0:01:58]}  Nh6 {[%clk 0:00:46]} 27. Qd6 {[%clk 0:01:56]}  Qc6 {[%clk 0:00:43]} 28. Qxc6 {[%clk 0:01:55]}  Rxc6 {[%clk 0:00:44]} 29. Nd3 {[%clk 0:01:54]}  Kf8 {[%clk 0:00:41]} 30. Nb4 {[%clk 0:01:53]}  Rc4 {[%clk 0:00:36]} 31. Nxa6 {[%clk 0:01:51]}  Rc2 {[%clk 0:00:36]} 32. Rb1 {[%clk 0:01:45]}  Nb6 {[%clk 0:00:35]} 33. Nb4 {[%clk 0:01:44]}  Rd2 {[%clk 0:00:29]} 34. Be1 {[%clk 0:01:40]}  Re2 {[%clk 0:00:24]} 35. Bf2 {[%clk 0:01:38]}  Nc4 {[%clk 0:00:20]} 36. Kf1 {[%clk 0:01:32]}  Rxb2 {[%clk 0:00:19]} 37. Rxb2 {[%clk 0:01:30]}  Nxb2 {[%clk 0:00:20]} 38. Ke2 {[%clk 0:01:26]}  Nc4 {[%clk 0:00:21]} 39. Nc2 {[%clk 0:01:27]}  Ng8 {[%clk 0:00:20]} 40. Kd3 {[%clk 0:01:26]}  Ke7 {[%clk 0:00:20]} 41. Kc3 {[%clk 0:01:26]}  Kd7 {[%clk 0:00:21]} 42. e4 {[%clk 0:01:22]}  Kc6 {[%clk 0:00:20]} 43. Nb4+ {[%clk 0:01:19]}  Kd6 {[%clk 0:00:20]} 44. Bg3+ {[%clk 0:01:19]}  Kd7 {[%clk 0:00:20]} 45. exd5 {[%clk 0:01:17]}  Nxa3 {[%clk 0:00:19]} 46. dxe6+ {[%clk 0:01:16]}  fxe6 {[%clk 0:00:19]} 47. Nd3 {[%clk 0:01:15]}  Nf6 {[%clk 0:00:16]} 48. Ne5+ {[%clk 0:01:09]}  Kc8 {[%clk 0:00:14]} 49. Nxg6 {[%clk 0:01:09]}  Nd5+ {[%clk 0:00:13]} 50. Kb3 {[%clk 0:01:10]}  Nc4 {[%clk 0:00:13]} 51. Nf4 {[%clk 0:01:08]}  Nd2+ {[%clk 0:00:11]} 52. Kc2 {[%clk 0:01:02]}  Nxf3 {[%clk 0:00:12]} 53. Nxe6 {[%clk 0:01:01]}  g6 {[%clk 0:00:08]} 54. Kd3 {[%clk 0:00:59]}  Kd7 {[%clk 0:00:09]} 55. Nc5+ {[%clk 0:00:58]}  Kc6 {[%clk 0:00:09]} 56. h4 {[%clk 0:00:57]}  Nf6 {[%clk 0:00:02]} 57. Ke3 {[%clk 0:00:52]}  Nxd4 {[%clk 0:00:02]} 58. Kxd4 {[%clk 0:00:51]}  Nxg4 {[%clk 0:00:03]} 59. Nd3 {[%clk 0:00:51]}  Nh6 {[%clk 0:00:03]} 60. Ne5+ {[%clk 0:00:50]}  Kb6 {[%clk 0:00:03]} 61. Bf2 {[%clk 0:00:45]}  Ka5 {[%clk 0:00:02]} 62. Ke4 {[%clk 0:00:45]}  Nf5 {[%clk 0:00:01]} 63. Nxg6 {[%clk 0:00:42]}  Nxh4 {[%clk 0:00:02]} 64. Nxh4 {[%clk 0:00:42]}  Ka4 {[%clk 0:00:02]} 65. Nf3 {[%clk 0:00:42]}  b4 {[%clk 0:00:02]} 66. Kd3 {[%clk 0:00:42]}  b3 {[%clk 0:00:03]} 67. Kc3 {[%clk 0:00:41]}  Kb5 {[%clk 0:00:03]} 68. Kxb3 {[%clk 0:00:39]}  Kc6 {[%clk 0:00:03]} 69. Kc4 {[%clk 0:00:40]}  Kd6 {[%clk 0:00:04]} 70. Kd4 {[%clk 0:00:39]}  Ke6 {[%clk 0:00:04]} 71. Ke4 {[%clk 0:00:34]}  Kd6 {[%clk 0:00:04]} 72. Ne5 {[%clk 0:00:34]}  Ke6 {[%clk 0:00:05]} 73. Bc5 {[%clk 0:00:34]}  Kf6 {[%clk 0:00:05]} 74. Nf3 {[%clk 0:00:31]}  Ke6 {[%clk 0:00:04]} 75. Nd4+ {[%clk 0:00:31]}  Kf6 {[%clk 0:00:05]} 76. Bd6 {[%clk 0:00:31]}  Kf7 {[%clk 0:00:05]} 77. Kf5 {[%clk 0:00:30]}  Ke8 {[%clk 0:00:05]} 78. Ke6 {[%clk 0:00:29]}  Kd8 {[%clk 0:00:05]} 79. Be5 {[%clk 0:00:26]}  Kc8 {[%clk 0:00:06]} 80. Kd6 {[%clk 0:00:25]}  Kb7 {[%clk 0:00:07]} 81. Kc5 {[%clk 0:00:24]}  Kc8 {[%clk 0:00:06]} 82. Kc6 {[%clk 0:00:23]}  Kd8 {[%clk 0:00:06]} 83. Bd6 {[%clk 0:00:22]}  Kc8 {[%clk 0:00:06]} 84. Nb5 {[%clk 0:00:20]}  Kd8 {[%clk 0:00:06]} 85. Na7 {[%clk 0:00:18]}  Ke8 {[%clk 0:00:06]} 86. Kd5 {[%clk 0:00:17]}  Kf7 {[%clk 0:00:07]} 87. Ke5 {[%clk 0:00:17]}  Kg6 {[%clk 0:00:07]} 88. Nc6 {[%clk 0:00:15]}  Kg5 {[%clk 0:00:08]} 89. Nd4 {[%clk 0:00:15]}  Kg4 {[%clk 0:00:09]} 90. Ke4 {[%clk 0:00:15]}  Kh3 {[%clk 0:00:08]} 91. Kf3 {[%clk 0:00:14]}  Kh4 {[%clk 0:00:09]} 92. Ne6 {[%clk 0:00:13]}  Kh3 {[%clk 0:00:08]} 93. Be5 {[%clk 0:00:12]}  Kh4 {[%clk 0:00:07]} 94. Bg3+ {[%clk 0:00:13]}  Kh5 {[%clk 0:00:07]} 95. Kf4 {[%clk 0:00:13]}  Kg6 {[%clk 0:00:08]} 96. Ke5 {[%clk 0:00:13]}  Kh5 {[%clk 0:00:07]} 97. Kf5 {[%clk 0:00:12]}  Kh6 {[%clk 0:00:07]} 98. Nf4 {[%clk 0:00:11]}  Kg7 {[%clk 0:00:07]} 99. Ke6 {[%clk 0:00:11]}  Kh6 {[%clk 0:00:07]} 100. Kf6 {[%clk 0:00:11]}  Kh7 {[%clk 0:00:07]} 101. Ne6 {[%clk 0:00:10]}  Kh6 {[%clk 0:00:08]} 102. Ng7 {[%clk 0:00:09]}  Kh7 {[%clk 0:00:08]} 103. Bf4 {[%clk 0:00:09]}  Kg8 {[%clk 0:00:09]} 104. Kg6 {[%clk 0:00:08]}  Kf8 {[%clk 0:00:09]} 105. Bd6+ {[%clk 0:00:09]}  Kg8 {[%clk 0:00:09]} 106. Nh5 {[%clk 0:00:09]}  Kh8 {[%clk 0:00:09]} 107. Kh6 {[%clk 0:00:09]}  Kg8 {[%clk 0:00:10]} 108. Kg6 {[%clk 0:00:09]}  Kh8 {[%clk 0:00:10]} 109. Ng3 {[%clk 0:00:10]}  Kg8 {[%clk 0:00:11]} 110. Nf5 {[%clk 0:00:10]}  Kh8 {[%clk 0:00:12]} 111. Be7 {[%clk 0:00:09]}  Kg8 {[%clk 0:00:12]} 112. Nh6+ {[%clk 0:00:10]}  Kh8 {[%clk 0:00:12]} 113. Bf6# {[%clk 0:00:11]} 1-0


[Site "https://www.chess.com"]

[Event "Titled Tuesday Blitz March 15 Late 2022"]
[White "Fiorito, Fabian"]
[Black "Domingo Nunez, Alejandro"]
[WhiteFideId "100200"]
[BlackFideId "22245561"]
[WhiteElo "2395"]
[BlackElo "2215"]
[Result "0-1"]
[Round "03"]
[TimeControl "180+1"]
[Date "2022.03.16"]
[WhiteClock "0:00:08"]
[BlackClock "0:00:39"]

1. e4 {[%clk 0:03:00]}  g6 {[%clk 0:03:00]} 2. d4 {[%clk 0:02:59]}  Bg7 {[%clk 0:03:01]} 3. Nc3 {[%clk 0:03:00]}  d6 {[%clk 0:03:01]} 4. Be3 {[%clk 0:03:00]}  a6 {[%clk 0:03:01]} 5. Qd2 {[%clk 0:02:57]}  b5 {[%clk 0:03:01]} 6. a4 {[%clk 0:02:58]}  b4 {[%clk 0:03:00]} 7. Na2 {[%clk 0:02:58]}  a5 {[%clk 0:03:00]} 8. c3 {[%clk 0:02:58]}  bxc3 {[%clk 0:03:00]} 9. Nxc3 {[%clk 0:02:58]}  Nf6 {[%clk 0:03:00]} 10. f3 {[%clk 0:02:55]}  O-O {[%clk 0:03:00]} 11. Bc4 {[%clk 0:02:55]}  Nc6 {[%clk 0:02:57]} 12. Nge2 {[%clk 0:02:53]}  Nb4 {[%clk 0:02:57]} 13. O-O {[%clk 0:02:51]}  d5 {[%clk 0:02:56]} 14. Bb3 {[%clk 0:02:38]}  c6 {[%clk 0:02:42]} 15. Rac1 {[%clk 0:02:23]}  Ba6 {[%clk 0:02:41]} 16. e5 {[%clk 0:02:09]}  Nd7 {[%clk 0:02:41]} 17. Na2 {[%clk 0:02:00]}  Nxa2 {[%clk 0:02:41]} 18. Bxa2 {[%clk 0:02:01]}  c5 {[%clk 0:02:41]} 19. Bxd5 {[%clk 0:01:54]}  Rb8 {[%clk 0:02:40]} 20. dxc5 {[%clk 0:01:51]}  Nxe5 {[%clk 0:02:37]} 21. Rfd1 {[%clk 0:01:45]}  Nd3 {[%clk 0:02:14]} 22. Bc4 {[%clk 0:01:32]}  Nxc1 {[%clk 0:02:04]} 23. Qxc1 {[%clk 0:01:30]}  Qc8 {[%clk 0:02:01]} 24. b3 {[%clk 0:01:26]}  Bxc4 {[%clk 0:01:46]} 25. Qxc4 {[%clk 0:01:26]}  Rb4 {[%clk 0:01:46]} 26. Qc2 {[%clk 0:01:23]}  Qe6 {[%clk 0:01:46]} 27. Rd3 {[%clk 0:01:09]}  Rfb8 {[%clk 0:01:36]} 28. c6 {[%clk 0:01:03]}  Rc8 {[%clk 0:01:27]} 29. c7 {[%clk 0:00:43]}  Be5 {[%clk 0:01:22]} 30. Bh6 {[%clk 0:00:26]}  Qb6+ {[%clk 0:01:22]} 31. Be3 {[%clk 0:00:25]}  Qxc7 {[%clk 0:01:20]} 32. Qxc7 {[%clk 0:00:22]}  Rxc7 {[%clk 0:01:15]} 33. Bh6 {[%clk 0:00:22]}  Bd6 {[%clk 0:01:09]} 34. Bd2 {[%clk 0:00:22]}  Rb8 {[%clk 0:00:50]} 35. Bxa5 {[%clk 0:00:22]}  Rcb7 {[%clk 0:00:50]} 36. Nd4 {[%clk 0:00:19]}  Bc5 {[%clk 0:00:51]} 37. b4 {[%clk 0:00:16]}  Ba7 {[%clk 0:00:41]} 38. b5 {[%clk 0:00:15]}  Rd7 {[%clk 0:00:41]} 39. Kf1 {[%clk 0:00:13]}  Rxd4 {[%clk 0:00:39]} 40. Rxd4 {[%clk 0:00:11]}  Bxd4 {[%clk 0:00:38]} 41. Ke2 {[%clk 0:00:12]}  Ra8 {[%clk 0:00:38]} 42. Kd3 {[%clk 0:00:06]}  Rxa5 {[%clk 0:00:38]} 43. Kxd4 {[%clk 0:00:07]}  Rxa4+ {[%clk 0:00:38]} 44. Kc5 {[%clk 0:00:07]}  Ra2 {[%clk 0:00:39]} 45. b6 {[%clk 0:00:08]}  Rxg2 {[%clk 0:00:39]} 46. b7 {[%clk 0:00:08]}  Rb2 {[%clk 0:00:39]} 0-1


[Site "https://www.chess.com"]

[Event "Titled Tuesday Blitz March 15 Late 2022"]
[White "Fishbein, Mitch"]
[Black "Araujo Filho, Luiz Antonio Coel"]
[WhiteFideId "30922917"]
[BlackFideId "2130661"]
[WhiteElo "1939"]
[BlackElo "2200"]
[Result "1-0"]
[Round "03"]
[TimeControl "180+1"]
[Date "2022.03.16"]
[WhiteClock "0:00:01"]
[BlackClock "0:00:03"]

1. d4 {[%clk 0:02:59]}  f5 {[%clk 0:02:59]} 2. Nc3 {[%clk 0:02:59]}  Nf6 {[%clk 0:03:00]} 3. Bg5 {[%clk 0:02:59]}  g6 {[%clk 0:03:00]} 4. Bxf6 {[%clk 0:02:46]}  exf6 {[%clk 0:03:01]} 5. e3 {[%clk 0:02:41]}  d5 {[%clk 0:03:00]} 6. Bd3 {[%clk 0:02:41]}  c6 {[%clk 0:02:59]} 7. h4 {[%clk 0:02:37]}  Nd7 {[%clk 0:02:55]} 8. h5 {[%clk 0:02:37]}  Bg7 {[%clk 0:02:55]} 9. Nge2 {[%clk 0:02:32]}  Kf7 {[%clk 0:02:26]} 10. Nf4 {[%clk 0:02:05]}  Nb6 {[%clk 0:02:24]} 11. g4 {[%clk 0:01:57]}  g5 {[%clk 0:02:20]} 12. h6 {[%clk 0:01:56]}  Bf8 {[%clk 0:02:18]} 13. Nfe2 {[%clk 0:01:34]}  fxg4 {[%clk 0:02:17]} 14. Ng3 {[%clk 0:01:34]}  Be6 {[%clk 0:02:12]} 15. Bf5 {[%clk 0:01:34]}  Qd7 {[%clk 0:01:32]} 16. Qxg4 {[%clk 0:01:34]}  Bxf5 {[%clk 0:01:31]} 17. Nxf5 {[%clk 0:01:32]}  Rg8 {[%clk 0:01:30]} 18. O-O-O {[%clk 0:01:28]}  Rg6 {[%clk 0:01:29]} 19. Kb1 {[%clk 0:01:26]}  Re8 {[%clk 0:01:28]} 20. f3 {[%clk 0:00:56]}  Nc4 {[%clk 0:01:26]} 21. e4 {[%clk 0:00:53]}  Bb4 {[%clk 0:01:08]} 22. Na4 {[%clk 0:00:39]}  dxe4 {[%clk 0:01:01]} 23. fxe4 {[%clk 0:00:38]}  Nd2+ {[%clk 0:00:41]} 24. Rxd2 {[%clk 0:00:24]}  Bxd2 {[%clk 0:00:41]} 25. Nc5 {[%clk 0:00:24]}  Qc7 {[%clk 0:00:40]} 26. Rf1 {[%clk 0:00:23]}  Bf4 {[%clk 0:00:40]} 27. e5 {[%clk 0:00:13]}  fxe5 {[%clk 0:00:35]} 28. Nd3 {[%clk 0:00:11]}  Kg8 {[%clk 0:00:21]} 29. dxe5 {[%clk 0:00:10]}  Bxe5 {[%clk 0:00:09]} 30. Re1 {[%clk 0:00:10]}  Rge6 {[%clk 0:00:07]} 31. Qc4 {[%clk 0:00:10]}  Kh8 {[%clk 0:00:05]} 32. Rg1 {[%clk 0:00:03]}  Bf6 {[%clk 0:00:04]} 33. a3 {[%clk 0:00:03]}  b5 {[%clk 0:00:04]} 34. Qb3 {[%clk 0:00:03]}  Qh2 {[%clk 0:00:03]} 35. Rf1 {[%clk 0:00:02]}  Qe2 {[%clk 0:00:03]} 36. Re1 {[%clk 0:00:02]}  Qg4 {[%clk 0:00:03]} 37. Rxe6 {[%clk 0:00:01]} 1-0


[Site "https://www.chess.com"]

[Event "Titled Tuesday Blitz March 15 Late 2022"]
[White "Gatterer, Florian"]
[Black "Bellissimo, Joseph F."]
[WhiteFideId "811688"]
[BlackFideId "2609843"]
[WhiteElo "2218"]
[BlackElo "2061"]
[Result "1/2-1/2"]
[Round "03"]
[TimeControl "180+1"]
[Date "2022.03.16"]
[WhiteClock "0:00:04"]
[BlackClock "0:00:07"]

1. e4 {[%clk 0:02:58]}  e6 {[%clk 0:02:59]} 2. d4 {[%clk 0:02:57]}  d5 {[%clk 0:02:59]} 3. Nc3 {[%clk 0:02:58]}  Nf6 {[%clk 0:02:59]} 4. e5 {[%clk 0:02:57]}  Nfd7 {[%clk 0:02:59]} 5. f4 {[%clk 0:02:58]}  c5 {[%clk 0:03:00]} 6. Nf3 {[%clk 0:02:58]}  Nc6 {[%clk 0:03:01]} 7. Be3 {[%clk 0:02:58]}  a6 {[%clk 0:03:01]} 8. Qd2 {[%clk 0:02:58]}  b5 {[%clk 0:03:02]} 9. dxc5 {[%clk 0:02:56]}  Bxc5 {[%clk 0:03:03]} 10. Bxc5 {[%clk 0:02:54]}  Nxc5 {[%clk 0:03:04]} 11. Qf2 {[%clk 0:02:53]}  Qe7 {[%clk 0:02:57]} 12. Bd3 {[%clk 0:02:52]}  Bb7 {[%clk 0:02:56]} 13. Ne2 {[%clk 0:02:51]}  O-O-O {[%clk 0:02:46]} 14. O-O-O {[%clk 0:02:47]}  Nb4 {[%clk 0:02:42]} 15. Kb1 {[%clk 0:02:44]}  Ne4 {[%clk 0:02:37]} 16. Qe3 {[%clk 0:02:30]}  Kb8 {[%clk 0:02:20]} 17. a3 {[%clk 0:02:30]}  Nc6 {[%clk 0:02:11]} 18. Ned4 {[%clk 0:02:21]}  Na5 {[%clk 0:02:10]} 19. Nb3 {[%clk 0:01:49]}  Nc4 {[%clk 0:02:02]} 20. Bxc4 {[%clk 0:01:47]}  dxc4 {[%clk 0:02:00]} 21. Na5 {[%clk 0:01:33]}  c3 {[%clk 0:01:26]} 22. Nxb7 {[%clk 0:01:21]}  Qxb7 {[%clk 0:01:23]} 23. b4 {[%clk 0:01:21]}  f5 {[%clk 0:00:56]} 24. exf6 {[%clk 0:01:18]}  gxf6 {[%clk 0:00:55]} 25. Rhe1 {[%clk 0:01:16]}  f5 {[%clk 0:00:55]} 26. Ka1 {[%clk 0:00:57]}  a5 {[%clk 0:00:49]} 27. Ne5 {[%clk 0:00:52]}  axb4 {[%clk 0:00:45]} 28. axb4 {[%clk 0:00:40]}  Qa6+ {[%clk 0:00:40]} 29. Kb1 {[%clk 0:00:39]}  Nd2+ {[%clk 0:00:28]} 30. Rxd2 {[%clk 0:00:36]}  cxd2 {[%clk 0:00:21]} 31. Rd1 {[%clk 0:00:35]}  Rhe8 {[%clk 0:00:16]} 32. Qc5 {[%clk 0:00:33]}  Rc8 {[%clk 0:00:16]} 33. Nd7+ {[%clk 0:00:29]}  Kb7 {[%clk 0:00:13]} 34. Qe5 {[%clk 0:00:19]}  Ka8 {[%clk 0:00:11]} 35. Qd4 {[%clk 0:00:14]}  Rc6 {[%clk 0:00:10]} 36. Nc5 {[%clk 0:00:12]}  Qa7 {[%clk 0:00:09]} 37. Rxd2 {[%clk 0:00:11]}  Rec8 {[%clk 0:00:09]} 38. Kb2 {[%clk 0:00:09]}  Rxc5 {[%clk 0:00:06]} 39. bxc5 {[%clk 0:00:08]}  Qxc5 {[%clk 0:00:05]} 40. Qxc5 {[%clk 0:00:08]}  Rxc5 {[%clk 0:00:06]} 41. Rd6 {[%clk 0:00:07]}  Rc4 {[%clk 0:00:05]} 42. Rxe6 {[%clk 0:00:05]}  Rxf4 {[%clk 0:00:05]} 43. Re7 {[%clk 0:00:04]}  Rf2 {[%clk 0:00:06]} 44. Rxh7 {[%clk 0:00:03]}  Rxg2 {[%clk 0:00:07]} 45. Rf7 {[%clk 0:00:03]}  Rf2 {[%clk 0:00:07]} 46. Rf6 {[%clk 0:00:03]}  f4 {[%clk 0:00:07]} 47. h4 {[%clk 0:00:04]}  Kb7 {[%clk 0:00:08]} 48. h5 {[%clk 0:00:04]}  f3 {[%clk 0:00:08]} 49. h6 {[%clk 0:00:05]}  Rh2 {[%clk 0:00:08]} 50. Rxf3 {[%clk 0:00:05]}  Rxh6 {[%clk 0:00:08]} 51. Rf5 {[%clk 0:00:05]}  Kb6 {[%clk 0:00:09]} 52. c3 {[%clk 0:00:06]}  Ka5 {[%clk 0:00:09]} 53. Kb3 {[%clk 0:00:06]}  Rh1 {[%clk 0:00:10]} 54. c4 {[%clk 0:00:06]}  Rb1+ {[%clk 0:00:10]} 55. Ka2 {[%clk 0:00:06]}  Rh1 {[%clk 0:00:08]} 56. Rxb5+ {[%clk 0:00:07]}  Ka4 {[%clk 0:00:08]} 57. Rb2 {[%clk 0:00:06]}  Rc1 {[%clk 0:00:07]} 58. Rd2 {[%clk 0:00:06]}  Rxc4 {[%clk 0:00:07]} 59. Rb2 {[%clk 0:00:06]}  Rh4 {[%clk 0:00:07]} 60. Rd2 {[%clk 0:00:06]}  Rh3 {[%clk 0:00:08]} 61. Rc2 {[%clk 0:00:05]}  Ra3+ {[%clk 0:00:08]} 62. Kb2 {[%clk 0:00:06]}  Rb3+ {[%clk 0:00:08]} 63. Kc1 {[%clk 0:00:06]}  Rh3 {[%clk 0:00:08]} 64. Kb2 {[%clk 0:00:06]}  Kb4 {[%clk 0:00:08]} 65. Rd2 {[%clk 0:00:06]}  Rb3+ {[%clk 0:00:08]} 66. Kc2 {[%clk 0:00:06]}  Kc4 {[%clk 0:00:08]} 67. Re2 {[%clk 0:00:05]}  Rc3+ {[%clk 0:00:07]} 68. Kd2 {[%clk 0:00:05]}  Ra3 {[%clk 0:00:07]} 69. Re4+ {[%clk 0:00:05]}  Kd5 {[%clk 0:00:07]} 70. Re2 {[%clk 0:00:05]}  Kd4 {[%clk 0:00:08]} 71. Re6 {[%clk 0:00:05]}  Ra2+ {[%clk 0:00:08]} 72. Kc1 {[%clk 0:00:05]}  Rh2 {[%clk 0:00:07]} 73. Rd6+ {[%clk 0:00:05]}  Kc3 {[%clk 0:00:08]} 74. Rc6+ {[%clk 0:00:05]}  Kb4 {[%clk 0:00:08]} 75. Rb6+ {[%clk 0:00:06]}  Kc5 {[%clk 0:00:08]} 76. Rb8 {[%clk 0:00:06]}  Rh6 {[%clk 0:00:07]} 77. Kd1 {[%clk 0:00:06]}  Kd4 {[%clk 0:00:07]} 78. Ke1 {[%clk 0:00:06]}  Ke3 {[%clk 0:00:07]} 79. Re8+ {[%clk 0:00:06]}  Kf3 {[%clk 0:00:07]} 80. Rf8+ {[%clk 0:00:06]}  Kg3 {[%clk 0:00:07]} 81. Rg8+ {[%clk 0:00:06]}  Kh3 {[%clk 0:00:06]} 82. Kd2 {[%clk 0:00:06]}  Re6 {[%clk 0:00:06]} 83. Kd3 {[%clk 0:00:05]}  Re7 {[%clk 0:00:05]} 84. Kd4 {[%clk 0:00:05]}  Kh4 {[%clk 0:00:06]} 85. Kd3 {[%clk 0:00:05]}  Kh5 {[%clk 0:00:07]} 86. Kd4 {[%clk 0:00:06]}  Kh6 {[%clk 0:00:07]} 87. Rg2 {[%clk 0:00:06]}  Kh7 {[%clk 0:00:08]} 88. Kd5 {[%clk 0:00:06]}  Ra7 {[%clk 0:00:08]} 89. Kd6 {[%clk 0:00:06]}  Rf7 {[%clk 0:00:08]} 90. Ke6 {[%clk 0:00:05]}  Rf1 {[%clk 0:00:08]} 91. Ke5 {[%clk 0:00:05]}  Kh6 {[%clk 0:00:09]} 92. Ke6 {[%clk 0:00:05]}  Kh5 {[%clk 0:00:09]} 93. Ke5 {[%clk 0:00:06]}  Kh4 {[%clk 0:00:10]} 94. Rg8 {[%clk 0:00:06]}  Kh3 {[%clk 0:00:10]} 95. Ke4 {[%clk 0:00:05]}  Rf7 {[%clk 0:00:09]} 96. Ke5 {[%clk 0:00:05]}  Kh4 {[%clk 0:00:08]} 97. Ke6 {[%clk 0:00:05]}  Rf3 {[%clk 0:00:08]} 98. Ke5 {[%clk 0:00:05]}  Kh3 {[%clk 0:00:08]} 99. Ke4 {[%clk 0:00:05]}  Rf6 {[%clk 0:00:07]} 100. Ke5 {[%clk 0:00:05]}  Rh6 {[%clk 0:00:08]} 101. Ke4 {[%clk 0:00:05]}  Kh4 {[%clk 0:00:07]} 102. Ke5 {[%clk 0:00:05]}  Kh5 {[%clk 0:00:07]} 103. Kf4 {[%clk 0:00:05]}  Rf6+ {[%clk 0:00:06]} 104. Ke5 {[%clk 0:00:05]}  Rg6 {[%clk 0:00:06]} 105. Rxg6 {[%clk 0:00:04]}  Kxg6 {[%clk 0:00:07]} 1/2-1/2


[Site "https://www.chess.com"]